fUST/lending_fUST_20251213
["ID","MTS","AMOUNT","RATE_DAILY","PERIOD"]
[398372534,1765559277543,-5032.62,0.00044383,120]
[398372535,1765559277599,-500.0,0.00044383,120]
[398372537,1765559277652,-1875.89,0.00044383,120]
[398372539,1765559277701,-672.23,0.00044383,120]
[398372541,1765559277747,-500.0,0.00044383,120]
[398372543,1765559277794,-558.94,0.00044383,120]
[398372545,1765559277837,-1234.93,0.00044383,120]
[398372547,1765559277884,-20681.97,0.00044383,120]
[398372549,1765559277928,-362.21139319,0.00044383,60]
[398372550,1765559277973,-1641.36,0.00044383,120]
[398372552,1765559278021,-2038.97,0.00044383,120]
[398372554,1765559278068,-500.0,0.00044383,120]
[398372556,1765559278118,-500.0,0.00044383,120]
[398372558,1765559278169,-500.0,0.00044383,120]
[398372560,1765559278220,-1642.86,0.00044383,120]
[398372562,1765559278267,-513.05,0.00044383,60]
[398372564,1765559278313,-16052.6,0.00044383,120]
[398372565,1765559278359,-1350.51,0.00044383,120]
[398372567,1765559278407,-615.38,0.00044383,120]
[398372569,1765559278451,-1014.18,0.00044383,120]
[398372575,1765559278687,-731.22,0.00044383,120]
[398372576,1765559278732,-500.0,0.00044383,120]
[398372578,1765559278777,-1750.24,0.00044383,120]
[398372580,1765559278821,-2037.28,0.00044383,120]
[398372582,1765559278865,-500.0,0.00044383,120]
[398372584,1765559278913,-628.99,0.00044383,120]
[398372586,1765559278959,-3597.56,0.00044383,120]
[398372588,1765559279004,-500.0,0.00044383,120]
[398372589,1765559279048,-500.0,0.00044383,120]
[398372591,1765559279099,-502.64,0.00044383,120]
[398372593,1765559279148,-410.08098545,0.00044383,120]
[398372595,1765559279196,-524.01,0.00044383,120]
[398372597,1765559279243,-1100.0,0.00044657,60]
[398372599,1765559279286,-2425.27,0.00044657,120]
[398372601,1765559279333,-6704.86,0.00044657,120]
[398372603,1765559279376,-597.47,0.00044657,120]
[398372604,1765559279422,-1143.61,0.00044657,120]
[398372606,1765559279468,-1325.92,0.00044657,120]
[398372608,1765559279519,-1251.6,0.00044657,120]
[398372610,1765559279569,-3129.74,0.00044657,120]
[398372612,1765559279618,-2104.79,0.00044657,120]
[398372614,1765559279663,-3190.1,0.00044657,120]
[398372616,1765559279707,-3783.5,0.00044657,120]
[398372618,1765559279749,-1478.1,0.00044657,120]
[398372619,1765559279796,-10320.71,0.00044657,120]
[398372621,1765559279850,-1170.68,0.00044657,120]
[398372623,1765559279896,-500.0,0.00044657,120]
[398372625,1765559279940,-1983.33,0.00044657,120]
[398372627,1765559279992,-1523.65,0.00044657,120]
[398372629,1765559280044,-830.76,0.00044657,120]
[398372631,1765559280095,-500.0,0.00044657,120]
[398372632,1765559280146,-1671.52,0.00044657,120]
[398372634,1765559280203,-2738.41,0.00044657,120]
[398372636,1765559280260,-500.0,0.00044657,120]
[398372638,1765559280315,-1681.97,0.00044657,120]
[398372640,1765559280367,-888.0,0.00044657,120]
[398372642,1765559280419,-2139.91,0.00044657,120]
[398372644,1765559280473,-2298.72,0.00044657,120]
[398372646,1765559280523,-1481.27,0.00044657,120]
[398372648,1765559280573,-1504.62,0.00044657,120]
[398372650,1765559280622,-5032.62,0.00044657,120]
[398372651,1765559280666,-500.0,0.00044657,120]
[398372653,1765559280717,-1875.89,0.00044657,120]
[398372655,1765559280768,-672.23,0.00044657,120]
[398372657,1765559280819,-500.0,0.00044657,120]
[398372659,1765559280868,-558.94,0.00044657,120]
[398372661,1765559280919,-1234.93,0.00044657,120]
[398372662,1765559280969,-20681.97,0.00044657,120]
[398372664,1765559281020,-362.21139319,0.00044657,60]
[398372666,1765559281071,-1641.36,0.00044657,120]
[398372668,1765559281120,-2038.97,0.00044657,120]
[398372669,1765559281167,-500.0,0.00044657,120]
[398372671,1765559281220,-500.0,0.00044657,120]
[398372673,1765559281270,-500.0,0.00044657,120]
[398372675,1765559281322,-1642.86,0.00044657,120]
[398372677,1765559281375,-16052.6,0.00044657,120]
[398372679,1765559281429,-513.05,0.00044657,60]
[398372680,1765559281480,-1350.51,0.00044657,120]
[398372682,1765559281533,-615.38,0.00044657,120]
[398372684,1765559281581,-1014.18,0.00044657,120]
[398372686,1765559281626,-731.22,0.00044657,120]
[398372688,1765559281671,-500.0,0.00044657,120]
[398372690,1765559281715,-1750.24,0.00044657,120]
[398372692,1765559281757,-2037.28,0.00044657,120]
[398372693,1765559281802,-500.0,0.00044657,120]
[398372695,1765559281857,-628.99,0.00044657,120]
[398372697,1765559281910,-3597.56,0.00044657,120]
[398372699,1765559281966,-500.0,0.00044657,120]
[398372701,1765559282018,-500.0,0.00044657,120]
[398372703,1765559282075,-502.64,0.00044657,120]
[398372704,1765559282128,-524.01,0.00044657,120]
[398372706,1765559282192,-2425.27,0.00044931,120]
[398372708,1765559282251,-6704.86,0.00044931,120]
[398372710,1765559282305,-597.47,0.00044931,120]
[398372712,1765559282358,-1143.61,0.00044931,120]
[398372714,1765559282412,-1325.92,0.00044931,120]
[398372715,1765559282464,-1251.6,0.00044931,120]
[398372717,1765559282517,-3129.74,0.00044931,120]
[398372719,1765559282571,-2104.79,0.00044931,120]
[398372721,1765559282625,-3190.1,0.00044931,120]
[398372723,1765559282679,-3783.5,0.00044931,120]
[398372725,1765559282730,-1478.1,0.00044931,120]
[398372727,1765559282778,-10320.71,0.00044931,120]
[398372728,1765559282828,-1170.68,0.00044931,120]
[398372730,1765559282886,-500.0,0.00044931,120]
[398372732,1765559282942,-1983.33,0.00044931,120]
[398372734,1765559282993,-1523.65,0.00044931,120]
[398372736,1765559283044,-830.76,0.00044931,120]
[398372737,1765559283099,-500.0,0.00044931,120]
[398372738,1765559283161,-1671.52,0.00044931,120]
[398372739,1765559283226,-2738.41,0.00044931,120]
[398372740,1765559283292,-530.29937365,0.00044931,120]
[398372741,1765559283359,-1681.97,0.00044931,120]
[398372742,1765559283428,-888.0,0.00044931,120]
[398372744,1765559283503,-2139.91,0.00044931,120]
[398372746,1765559283568,-2298.72,0.00044931,120]
[398372748,1765559283628,-1481.27,0.00044931,120]
[398372749,1765559283688,-1504.62,0.00044931,120]
[398372751,1765559283750,-5032.62,0.00044931,120]
[398372753,1765559283806,-500.0,0.00044931,120]
[398372755,1765559283874,-1875.89,0.00044931,120]
[398372757,1765559283937,-672.23,0.00044931,120]
[398372759,1765559283993,-500.0,0.00044931,120]
[398372761,1765559284048,-558.94,0.00044931,120]
[398372763,1765559284103,-1234.93,0.00044931,120]
[398372765,1765559284154,-20681.97,0.00044931,120]
[398372766,1765559284208,-362.21139319,0.00044931,60]
[398372768,1765559284261,-1641.36,0.00044931,120]
[398372770,1765559284316,-2038.97,0.00044931,120]
[398372772,1765559284372,-500.0,0.00044931,120]
[398372774,1765559284425,-596.90414044,0.00044931,120]
[398372775,1765559284477,-500.0,0.00044931,120]
[398372777,1765559284536,-1642.86,0.00044931,120]
[398372779,1765559284592,-16052.6,0.00044931,120]
[398372781,1765559284649,-513.05,0.00044931,60]
[398372783,1765559284705,-1350.51,0.00044931,120]
[398372784,1765559284754,-615.38,0.00044931,120]
[398372786,1765559284810,-1014.18,0.00044931,120]
[398372788,1765559284863,-731.22,0.00044931,120]
[398372790,1765559284918,-500.0,0.00044931,120]
[398372792,1765559284970,-1750.24,0.00044931,120]
[398372794,1765559285017,-2037.28,0.00044931,120]
[398372795,1765559285062,-500.0,0.00044931,120]
[398372797,1765559285111,-628.99,0.00044931,120]
[398372799,1765559285159,-500.0,0.00044931,120]
[398372801,1765559285205,-3597.56,0.00044931,120]
[398372803,1765559285253,-500.0,0.00044931,120]
[398372804,1765559285307,-502.64,0.00044931,120]
[398372806,1765559285368,-524.01,0.00044931,120]
[398372808,1765559285427,-3734.44061058,0.0004498,30]
[398372810,1765559285481,-337.58,0.00045,120]
[398372812,1765559285536,-315.65,0.00045,120]
[398372814,1765559285589,-304.31,0.00045,120]
[398372816,1765559285643,-6690.64,0.00045,120]
[398372818,1765559285696,-2349.49024752,0.00045102,30]
[398372820,1765559285746,-1100.0,0.00045205,60]
[398372821,1765559285800,-2425.27,0.00045205,120]
[398372823,1765559285858,-6704.86,0.00045205,120]
[398372825,1765559285913,-597.47,0.00045205,120]
[398372827,1765559285967,-1325.92,0.00045205,120]
[398372829,1765559286022,-1143.61,0.00045205,120]
[398372831,1765559286081,-1251.6,0.00045205,120]
[398372833,1765559286149,-3129.74,0.00045205,120]
[398372835,1765559286207,-2104.79,0.00045205,120]
[398372837,1765559286263,-3190.1,0.00045205,120]
[398372839,1765559286319,-3783.5,0.00045205,120]
[398372841,1765559286375,-1478.1,0.00045205,120]
[398372843,1765559286441,-10320.71,0.00045205,120]
[398372845,1765559286508,-1170.68,0.00045205,120]
[398372847,1765559286567,-500.0,0.00045205,120]
[398372849,1765559286618,-1983.33,0.00045205,120]
[398372850,1765559286666,-1523.65,0.00045205,120]
[398372852,1765559286719,-830.76,0.00045205,120]
[398372854,1765559286770,-500.0,0.00045205,120]
[398372856,1765559286822,-1671.52,0.00045205,120]
[398372858,1765559286872,-2738.41,0.00045205,120]
[398372860,1765559286925,-1681.97,0.00045205,120]
[398372861,1765559286973,-888.0,0.00045205,120]
[398372863,1765559287030,-2139.91,0.00045205,120]
[398372865,1765559287087,-2298.72,0.00045205,120]
[398372867,1765559287148,-1481.27,0.00045205,120]
[398372869,1765559287209,-1504.62,0.00045205,120]
[398372879,1765559287735,-5032.62,0.00045205,120]
[398372881,1765559287796,-500.0,0.00045205,120]
[398372883,1765559287847,-1875.89,0.00045205,120]
[398372884,1765559287892,-500.0,0.00045205,120]
[398372886,1765559287948,-672.23,0.00045205,120]
[398372888,1765559287999,-500.0,0.00045205,120]
[398372890,1765559288054,-558.94,0.00045205,120]
[398372892,1765559288106,-1234.93,0.00045205,120]
[398372894,1765559288161,-20681.97,0.00045205,120]
[398372895,1765559288217,-362.21139319,0.00045205,60]
[398372897,1765559288275,-1641.36,0.00045205,120]
[398372899,1765559288334,-2038.97,0.00045205,120]
[398372901,1765559288395,-500.0,0.00045205,120]
[398372903,1765559288454,-500.0,0.00045205,120]
[398372905,1765559288507,-1642.86,0.00045205,120]
[398372907,1765559288561,-16052.6,0.00045205,120]
[398372909,1765559288617,-513.05,0.00045205,60]
[398372910,1765559288678,-1350.51,0.00045205,120]
[398372912,1765559288736,-615.38,0.00045205,120]
[398372914,1765559288792,-1014.18,0.00045205,120]
[398372916,1765559288847,-731.22,0.00045205,120]
[398372918,1765559288908,-500.0,0.00045205,120]
[398372920,1765559288961,-1750.24,0.00045205,120]
[398372922,1765559289014,-2037.28,0.00045205,120]
[398372924,1765559289072,-382.01983947,0.00045205,120]
[398372925,1765559289126,-628.99,0.00045205,120]
[398372927,1765559289181,-517.28902852,0.00045205,120]
[398372929,1765559289247,-3597.56,0.00045205,120]
[398372931,1765559289311,-500.0,0.00045205,120]
[398372933,1765559289372,-502.64,0.00045205,120]
[398372935,1765559289427,-183.43358368,0.000453,120]
[398372936,1765559289480,-160.33594168,0.00045478,120]
[398372937,1765559289536,-414.0,0.00045478,120]
[398372938,1765559289591,-429.318,0.00045478,120]
[398372939,1765559289648,-500.0,0.00045478,120]
[398372941,1765559289702,-445.202766,0.00045478,120]
[398372942,1765559289749,-500.0,0.00045478,120]
[398372944,1765559289801,-461.67526834,0.00045478,120]
[398372946,1765559289850,-500.0,0.00045478,120]
[398372948,1765559289906,-478.75725327,0.00045478,120]
[398372950,1765559289959,-500.0,0.00045478,120]
[398372952,1765559290009,-496.47127164,0.00045478,120]
[398372954,1765559290060,-250.0,0.00045478,120]
[398372956,1765559290111,-500.0,0.00045478,120]
[398372957,1765559290160,-514.84070869,0.00045478,120]
[398372959,1765559290214,-250.0,0.00045478,120]
[398372961,1765559290268,-500.0,0.00045478,120]
[398372963,1765559290322,-533.88981491,0.00045478,120]
[398372965,1765559290380,-250.0,0.00045478,120]
[398372967,1765559290432,-612.73,0.00045479,120]
[398372969,1765559290485,-284.43,0.00045479,120]
[398372971,1765559290534,-500.0,0.00045479,120]
[398372972,1765559290584,-570.07,0.00045479,120]
[398372974,1765559290642,-570.53,0.00045479,120]
[398372976,1765559290704,-503.52,0.00045479,120]
[398372978,1765559290756,-500.0,0.00045479,120]
[398372980,1765559290807,-500.0,0.00045479,120]
[398372982,1765559290864,-956.87,0.00045479,120]
[398372984,1765559290910,-500.0,0.00045479,120]
[398372985,1765559290957,-656.63,0.00045479,120]
[398372987,1765559291014,-540.31,0.00045479,120]
[398372989,1765559291065,-612.94,0.00045479,120]
[398372991,1765559291115,-500.0,0.00045479,120]
[398372993,1765559291166,-1370.61,0.00045479,120]
[398372995,1765559291215,-500.0,0.00045479,120]
[398372997,1765559291262,-500.0,0.00045479,120]
[398372998,1765559291310,-1540.11,0.00045479,120]
[398373000,1765559291362,-517.69,0.00045479,120]
[398373002,1765559291414,-500.0,0.00045479,120]
[398373004,1765559291463,-642.33,0.00045479,120]
[398373006,1765559291510,-737.24,0.00045479,120]
[398373008,1765559291555,-711.97,0.00045479,120]
[398373009,1765559291604,-1295.86,0.00045479,120]
[398373011,1765559291656,-821.88,0.00045479,120]
[398373013,1765559291709,-757.37,0.00045479,120]
[398373015,1765559291753,-878.07,0.00045479,120]
[398373017,1765559291797,-500.0,0.00045479,120]
[398373018,1765559291844,-633.82,0.00045479,120]
[398373020,1765559291890,-2425.27,0.00045479,120]
[398373022,1765559291937,-6704.86,0.00045479,120]
[398373024,1765559291984,-597.47,0.00045479,120]
[398373026,1765559292031,-1325.92,0.00045479,120]
[398373028,1765559292076,-1143.61,0.00045479,120]
[398373029,1765559292123,-1251.6,0.00045479,120]
[398373031,1765559292175,-3129.74,0.00045479,120]
[398373033,1765559292227,-2104.79,0.00045479,120]
[398373035,1765559292281,-3190.1,0.00045479,120]
[398373037,1765559292332,-3783.5,0.00045479,120]
[398373039,1765559292387,-1478.1,0.00045479,120]
[398373041,1765559292448,-10320.71,0.00045479,120]
[398373042,1765559292508,-1170.68,0.00045479,120]
[398373044,1765559292570,-500.0,0.00045479,120]
[398373046,1765559292626,-1983.33,0.00045479,120]
[398373051,1765559292851,-1523.65,0.00045479,120]
[398373052,1765559292896,-830.76,0.00045479,120]
[398373054,1765559292948,-500.0,0.00045479,120]
[398373056,1765559293000,-1671.52,0.00045479,120]
[398373058,1765559293052,-2738.41,0.00045479,120]
[398373060,1765559293102,-1681.97,0.00045479,120]
[398373062,1765559293152,-888.0,0.00045479,120]
[398373064,1765559293201,-2139.91,0.00045479,120]
[398373066,1765559293246,-2298.72,0.00045479,120]
[398373067,1765559293293,-1481.27,0.00045479,120]
[398373069,1765559293347,-1504.62,0.00045479,120]
[398373071,1765559293400,-5032.62,0.00045479,120]
[398373073,1765559293449,-500.0,0.00045479,120]
[398373075,1765559293502,-1875.89,0.00045479,120]
[398373077,1765559293562,-672.23,0.00045479,120]
[398373079,1765559293621,-500.0,0.00045479,120]
[398373081,1765559293669,-558.94,0.00045479,120]
[398373083,1765559293715,-1234.93,0.00045479,120]
[398373085,1765559293760,-20681.97,0.00045479,120]
[398373087,1765559293803,-362.21139319,0.00045479,60]
[398373088,1765559293847,-1641.36,0.00045479,120]
[398373090,1765559293899,-2038.97,0.00045479,120]
[398373092,1765559293950,-500.0,0.00045479,120]
[398373094,1765559294001,-500.0,0.00045479,120]
[398373096,1765559294050,-1642.86,0.00045479,120]
[398373098,1765559294097,-16052.6,0.00045479,120]
[398373100,1765559294141,-513.05,0.00045479,60]
[398373102,1765559294189,-1350.51,0.00045479,120]
[398373103,1765559294234,-615.38,0.00045479,120]
[398373105,1765559294277,-1014.18,0.00045479,120]
[398373107,1765559294323,-731.22,0.00045479,120]
[398373109,1765559294371,-500.0,0.00045479,120]
[398373111,1765559294421,-1750.24,0.00045479,120]
[398373113,1765559294466,-2037.28,0.00045479,120]
[398373114,1765559294514,-628.99,0.00045479,120]
[398373116,1765559294562,-3597.56,0.00045479,120]
[398373118,1765559294604,-500.0,0.00045479,120]
[398373120,1765559294651,-502.64,0.00045479,120]
[398373122,1765559294699,-1000.0,0.000455,120]
[398373124,1765559294745,-502.29830086,0.00045548,30]
[398373125,1765559294791,-500.0,0.00045753,120]
[398373127,1765559294839,-1100.0,0.00045753,60]
[398373129,1765559294885,-6062.91,0.00045753,120]
[398373131,1765559294931,-628.67,0.00045753,120]
[398373133,1765559294976,-929.97,0.00045753,120]
[398373135,1765559295022,-932.03,0.00045753,120]
[398373136,1765559295064,-652.93,0.00045753,120]
[398373138,1765559295111,-630.98,0.00045753,120]
[398373140,1765559295159,-553.77,0.00045753,120]
[398373142,1765559295203,-639.0,0.00045753,30]
[398373143,1765559295248,-502.88,0.00045753,120]
[398373144,1765559295291,-487.35120217,0.00045753,120]
[398373145,1765559295337,-500.0,0.00045753,120]
[398373146,1765559295385,-605.78,0.00045753,120]
[398373147,1765559295441,-786.96,0.00045753,120]
[398373148,1765559295492,-500.0,0.00045753,120]
[398373150,1765559295536,-568.22,0.00045753,120]
[398373151,1765559295582,-500.0,0.00045753,120]
[398373153,1765559295633,-1644.61,0.00045753,120]
[398373155,1765559295682,-1226.93,0.00045753,120]
[398373157,1765559295728,-1439.87,0.00045753,120]
[398373159,1765559295771,-838.88,0.00045753,120]
[398373161,1765559295815,-557.55,0.00045753,120]
[398373163,1765559295856,-571.36,0.00045753,120]
[398373164,1765559295902,-612.73,0.00045753,120]
[398373166,1765559295949,-284.43,0.00045753,120]
[398373168,1765559295996,-500.0,0.00045753,120]
[398373170,1765559296046,-570.07,0.00045753,120]
[398373172,1765559296094,-570.53,0.00045753,120]
[398373174,1765559296139,-503.52,0.00045753,120]
[398373175,1765559296188,-500.0,0.00045753,120]
[398373177,1765559296242,-500.0,0.00045753,120]
[398373179,1765559296292,-956.87,0.00045753,120]
[398373181,1765559296341,-491.02628922,0.00045753,120]
[398373183,1765559296386,-656.63,0.00045753,120]
[398373185,1765559296428,-540.31,0.00045753,120]
[398373186,1765559296472,-612.94,0.00045753,120]
[398373188,1765559296515,-1370.61,0.00045753,120]
[398373190,1765559296559,-500.0,0.00045753,120]
[398373192,1765559296604,-500.0,0.00045753,120]
[398373193,1765559296652,-500.0,0.00045753,120]
[398373195,1765559296704,-1540.11,0.00045753,120]
[398373197,1765559296754,-517.69,0.00045753,120]
[398373199,1765559296803,-500.0,0.00045753,120]
[398373201,1765559296849,-642.33,0.00045753,120]
[398373203,1765559296909,-737.24,0.00045753,120]
[398373205,1765559296968,-711.97,0.00045753,120]
[398373206,1765559297022,-1295.86,0.00045753,120]
[398373208,1765559297078,-821.88,0.00045753,120]
[398373210,1765559297131,-757.37,0.00045753,120]
[398373212,1765559297183,-878.07,0.00045753,120]
[398373214,1765559297235,-500.0,0.00045753,120]
[398373216,1765559297282,-633.82,0.00045753,120]
[398373218,1765559297331,-2425.27,0.00045753,120]
[398373219,1765559297378,-6704.86,0.00045753,120]
[398373223,1765559297550,-597.47,0.00045753,120]
[398373225,1765559297602,-1325.92,0.00045753,120]
[398373227,1765559297650,-1143.61,0.00045753,120]
[398373229,1765559297697,-1251.6,0.00045753,120]
[398373231,1765559297743,-3129.74,0.00045753,120]
[398373233,1765559297789,-2104.79,0.00045753,120]
[398373234,1765559297847,-3190.1,0.00045753,120]
[398373236,1765559297904,-3783.5,0.00045753,120]
[398373238,1765559297959,-1478.1,0.00045753,120]
[398373240,1765559298015,-10320.71,0.00045753,120]
[398373242,1765559298072,-1170.68,0.00045753,120]
[398373244,1765559298126,-500.0,0.00045753,120]
[398373246,1765559298179,-1983.33,0.00045753,120]
[398373248,1765559298225,-1523.65,0.00045753,120]
[398373249,1765559298272,-830.76,0.00045753,120]
[398373251,1765559298323,-500.0,0.00045753,120]
[398373253,1765559298379,-1671.52,0.00045753,120]
[398373255,1765559298435,-2738.41,0.00045753,120]
[398373257,1765559298489,-1681.97,0.00045753,120]
[398373259,1765559298540,-888.0,0.00045753,120]
[398373261,1765559298589,-2139.91,0.00045753,120]
[398373262,1765559298639,-2298.72,0.00045753,120]
[398373264,1765559298694,-1481.27,0.00045753,120]
[398373266,1765559298745,-1504.62,0.00045753,120]
[398373268,1765559298794,-5032.62,0.00045753,120]
[398373270,1765559298837,-500.0,0.00045753,120]
[398373272,1765559298881,-1875.89,0.00045753,120]
[398373273,1765559298927,-672.23,0.00045753,120]
[398373275,1765559298980,-500.0,0.00045753,120]
[398373277,1765559299029,-558.94,0.00045753,120]
[398373279,1765559299074,-1234.93,0.00045753,120]
[398373281,1765559299119,-20681.97,0.00045753,120]
[398373282,1765559299168,-362.21139319,0.00045753,60]
[398373284,1765559299220,-1641.36,0.00045753,120]
[398373286,1765559299268,-2038.97,0.00045753,120]
[398373288,1765559299313,-338.76328912,0.00045753,120]
[398373290,1765559299357,-500.0,0.00045753,120]
[398373292,1765559299401,-1642.86,0.00045753,120]
[398373293,1765559299454,-16052.6,0.00045753,120]
[398373295,1765559299513,-513.05,0.00045753,60]
[398373297,1765559299563,-1350.51,0.00045753,120]
[398373299,1765559299609,-615.38,0.00045753,120]
[398373301,1765559299654,-1014.18,0.00045753,120]
[398373303,1765559299697,-731.22,0.00045753,120]
[398373305,1765559299742,-500.0,0.00045753,120]
[398373306,1765559299786,-1750.24,0.00045753,120]
[398373308,1765559299834,-2037.28,0.00045753,120]
[398373310,1765559299888,-628.99,0.00045753,120]
[398373312,1765559299934,-3597.56,0.00045753,120]
[398373314,1765559299980,-250.0,0.00045753,120]
[398373315,1765559300028,-502.64,0.00045753,120]
[398373317,1765559300075,-1412.37069121,0.000458,120]
[398373319,1765559300120,-2245.26649677,0.000459,120]
[398373321,1765559300166,-1000.0,0.00046,120]
[398373322,1765559300214,-301000.0,0.00046,120]
[398373324,1765559300263,-500.0,0.00046,120]
[398373326,1765559300310,-1000.0,0.00046,120]
[398373328,1765559300354,-6062.91,0.00046027,120]
[398373329,1765559300398,-628.67,0.00046027,120]
[398373331,1765559300449,-929.97,0.00046027,120]
[398373333,1765559300497,-932.03,0.00046027,120]
[398373335,1765559300544,-652.93,0.00046027,120]
[398373337,1765559300592,-630.98,0.00046027,120]
[398373339,1765559300641,-553.77,0.00046027,120]
[398373341,1765559300688,-639.0,0.00046027,30]
[398373342,1765559300736,-502.88,0.00046027,120]
[398373344,1765559300784,-500.0,0.00046027,120]
[398373346,1765559300829,-605.78,0.00046027,120]
[398373348,1765559300873,-786.96,0.00046027,120]
[398373349,1765559300917,-500.0,0.00046027,120]
[398373351,1765559300967,-568.22,0.00046027,120]
[398373353,1765559301015,-500.0,0.00046027,120]
[398373354,1765559301064,-1644.61,0.00046027,120]
[398373355,1765559301112,-1226.93,0.00046027,120]
[398373356,1765559301160,-1439.87,0.00046027,120]
[398373357,1765559301209,-838.88,0.00046027,120]
[398373358,1765559301260,-557.55,0.00046027,120]
[398373359,1765559301309,-571.36,0.00046027,120]
[398373360,1765559301360,-612.73,0.00046027,120]
[398373361,1765559301404,-284.43,0.00046027,120]
[398373363,1765559301453,-500.0,0.00046027,120]
[398373365,1765559301497,-570.07,0.00046027,120]
[398373367,1765559301544,-570.53,0.00046027,120]
[398373369,1765559301588,-503.52,0.00046027,120]
[398373370,1765559301633,-500.0,0.00046027,120]
[398373372,1765559301679,-500.0,0.00046027,120]
[398373374,1765559301722,-956.87,0.00046027,120]
[398373376,1765559301764,-656.63,0.00046027,120]
[398373378,1765559301805,-540.31,0.00046027,120]
[398373380,1765559301852,-612.94,0.00046027,120]
[398373381,1765559301895,-500.0,0.00046027,120]
[398373383,1765559301945,-1370.61,0.00046027,120]
[398373385,1765559301993,-500.0,0.00046027,120]
[398373387,1765559302039,-500.0,0.00046027,120]
[398373389,1765559302089,-1540.11,0.00046027,120]
[398373393,1765559302262,-517.69,0.00046027,120]
[398373395,1765559302309,-500.0,0.00046027,120]
[398373397,1765559302359,-642.33,0.00046027,120]
[398373399,1765559302414,-737.24,0.00046027,120]
[398373401,1765559302461,-711.97,0.00046027,120]
[398373403,1765559302503,-1295.86,0.00046027,120]
[398373405,1765559302545,-821.88,0.00046027,120]
[398373406,1765559302589,-757.37,0.00046027,120]
[398373408,1765559302633,-878.07,0.00046027,120]
[398373410,1765559302674,-500.0,0.00046027,120]
[398373412,1765559302715,-633.82,0.00046027,120]
[398373414,1765559302756,-2425.27,0.00046027,120]
[398373415,1765559302798,-6704.86,0.00046027,120]
[398373417,1765559302842,-597.47,0.00046027,120]
[398373419,1765559302889,-1325.92,0.00046027,120]
[398373421,1765559302934,-1143.61,0.00046027,120]
[398373423,1765559302981,-1251.6,0.00046027,120]
[398373425,1765559303038,-3129.74,0.00046027,120]
[398373427,1765559303092,-2104.79,0.00046027,120]
[398373428,1765559303144,-3190.1,0.00046027,120]
[398373430,1765559303206,-3783.5,0.00046027,120]
[398373432,1765559303261,-1478.1,0.00046027,120]
[398373434,1765559303316,-10320.71,0.00046027,120]
[398373436,1765559303370,-1170.68,0.00046027,120]
[398373438,1765559303420,-500.0,0.00046027,120]
[398373440,1765559303470,-1983.33,0.00046027,120]
[398373442,1765559303515,-1523.65,0.00046027,120]
[398373444,1765559303560,-830.76,0.00046027,120]
[398373446,1765559303606,-500.0,0.00046027,120]
[398373447,1765559303654,-1671.52,0.00046027,120]
[398373449,1765559303704,-2738.41,0.00046027,120]
[398373451,1765559303750,-1681.97,0.00046027,120]
[398373453,1765559303797,-888.0,0.00046027,120]
[398373455,1765559303843,-2139.91,0.00046027,120]
[398373457,1765559303892,-2298.72,0.00046027,120]